bitfinex/quotes_SOLUSD_20220306
["timestamp","ask_amount","ask_price","bid_price","bid_amount"]
[1646578003612,1.54709804,87.583,87.54,17.1397]
[1646578004213,1.54709804,87.583,87.533,23.3303]
[1646578004415,1.54709804,87.584,87.533,23.3303]
[1646578004618,1.54709804,87.585,87.533,23.3303]
[1646578004838,1.54709804,87.584,87.533,23.3303]
[1646578005436,1.54709804,87.582,87.533,23.3303]
[1646578006335,1.54709804,87.581,87.533,23.3303]
[1646578006937,1.54709804,87.582,87.533,23.3303]
[1646578007136,1.54709804,87.582,87.54,17.14]
[1646578007540,1.54709804,87.578,87.54,17.14]
[1646578008138,1.54709804,87.577,87.54,17.14]
[1646578008538,1.54709804,87.578,87.54,17.14]
[1646578009341,1.54709804,87.579,87.54,17.14]
[1646578009539,1.54709804,87.579,87.541,5.71]
[1646578009741,1.54709804,87.578,87.541,5.71]
[1646578010044,1.54709804,87.578,87.55,17.1383]
[1646578010644,1.54709804,87.579,87.55,17.1383]
[1646578011142,1.54709804,87.578,87.55,17.1383]
[1646578011545,1.54709804,87.57,87.55,17.1383]
[1646578012142,1.54709804,87.571,87.55,17.1383]
[1646578012552,1.54709804,87.57,87.55,17.1383]
[1646578013746,1.54709804,87.572,87.55,17.1383]
[1646578014747,1.54709804,87.573,87.55,17.1383]
[1646578015348,1.54709804,87.574,87.55,17.1383]
[1646578015948,1.54709804,87.575,87.55,17.1383]
[1646578016749,1.54709804,87.578,87.55,17.1383]
[1646578017552,1.54709804,87.579,87.55,17.1383]
[1646578017953,1.54709804,87.579,87.54,17.1398]
[1646578018153,1.54709804,87.578,87.541,5.71]
[1646578018352,1.54709804,87.577,87.534,5.71]
[1646578019254,1.54709804,87.577,87.55,17.1384]
[1646578020952,1.54709804,87.578,87.55,17.1384]
[1646578021752,1.54709804,87.579,87.55,17.1384]
[1646578022253,1.54709804,87.578,87.55,17.1384]
[1646578022653,1.54709804,87.577,87.55,17.1384]
[1646578023052,1.54709804,87.578,87.55,17.1384]
[1646578024254,1.54709804,87.579,87.55,17.1384]
[1646578024556,1.54709804,87.578,87.55,17.1384]
[1646578025657,1.54709804,87.579,87.551,114.6]
[1646578025858,1.54709804,87.581,87.56,17.1339]
[1646578026260,1.54709804,87.581,87.561,114.6]
[1646578026458,1.54709804,87.582,87.561,114.6]
[1646578026661,1.54709804,87.582,87.562,47.73712386]
[1646578027064,1.54709804,87.585,87.562,47.73712386]
[1646578027460,1.54709804,87.584,87.55,57.112]
[1646578027660,1.54709804,87.584,87.543,23.9198]
[1646578028062,1.54709804,87.584,87.544,114.6]
[1646578028462,1.54709804,87.584,87.56,17.1362]
[1646578029062,1.54709804,87.585,87.56,17.1362]
[1646578032970,1.54709804,87.584,87.56,17.1362]
[1646578033167,1.54709804,87.585,87.56,17.1362]
[1646578034570,1.54709804,87.586,87.56,17.1362]
[1646578034974,1.54709804,87.586,87.561,114.6]
[1646578035275,1.54709804,87.587,87.56,17.1362]
[1646578035477,1.54709804,87.597,87.56,17.1362]
[1646578036074,1.54709804,87.598,87.561,2.83613526]
[1646578036275,1.54709804,87.6,87.57,17.1318]
[1646578036477,1.54709804,87.603,87.57,17.1318]
[1646578036874,1.54709804,87.602,87.57,17.1318]
[1646578037682,1.54709804,87.601,87.57,17.1318]
[1646578037877,1.54709804,87.601,87.56,17.1364]
[1646578038082,1.54709804,87.592,87.56,17.1364]
[1646578038491,1.54709804,87.59,87.56,17.1364]
[1646578038695,1.54709804,87.592,87.56,17.1364]
[1646578038892,1.54709804,87.591,87.56,17.1364]
[1646578039491,1.54709804,87.59,87.56,17.1364]
[1646578039890,1.54709804,87.589,87.56,17.1364]
[1646578040794,1.54709804,87.591,87.56,17.1364]
[1646578041198,1.54709804,87.591,87.56,131.7364]
[1646578041394,1.54709804,87.591,87.56,134.57253526]
[1646578041599,1.54709804,87.6,87.56,134.57253526]
[1646578042894,1.54709804,87.6,87.56,19.97253526]
[1646578043094,1.54709804,87.601,87.56,19.97253526]
[1646578043497,1.54709804,87.6,87.56,19.97253526]
[1646578043896,1.54709804,87.6,87.56,17.1364]
[1646578044096,1.54709804,87.598,87.56,17.1364]
[1646578044295,1.54709804,87.595,87.56,17.1364]
[1646578044497,1.54709804,87.595,87.554,23.3479]
[1646578044699,53.78608067,87.61,87.554,23.3479]
[1646578044700,1.54709804,87.58,87.554,23.3479]
[1646578044903,36.78993647,87.609,87.529,2.83613526]
[1646578044904,1.54709804,87.579,87.53,22.6046]
[1646578045096,1.54709804,87.575,87.53,22.6046]
[1646578045296,1.54709804,87.574,87.53,22.6046]
[1646578045497,24.33350403,87.574,87.54,17.1409]
[1646578045900,1.54709804,87.574,87.54,17.1409]
[1646578046302,1.54709804,87.573,87.54,17.1409]
[1646578046497,1.54709804,87.572,87.54,17.1409]
[1646578047397,1.54709804,87.572,87.54,16.6409]
[1646578049404,1.54709804,87.573,87.54,16.6409]
[1646578049808,61.05952394,87.574,87.54,16.6409]
[1646578049809,1.54709804,87.572,87.54,16.6409]
[1646578050102,1.54709804,87.573,87.54,16.6409]
[1646578051906,1.54709804,87.574,87.54,16.6409]
[1646578053005,1.54709804,87.573,87.54,16.6409]
[1646578053804,1.54709804,87.574,87.54,16.6409]
[1646578055510,5.71,87.581,87.54,16.6409]
[1646578055511,1.54709804,87.572,87.54,16.6409]
[1646578055907,1.54709804,87.571,87.54,16.6409]
[1646578056111,1.54709804,87.57,87.54,16.6409]
[1646578056309,1.54709804,87.571,87.54,16.6409]
[1646578057513,1.54709804,87.571,87.528,23.43626919]
[1646578057712,1.54709804,87.571,87.521,22.6074]
[1646578057915,1.54709804,87.571,87.512,23.43626919]
[1646578057916,1.54709804,87.56,87.512,23.43626919]
[1646578058114,1.54709804,87.556,87.501,24.9226]
[1646578058314,1.54709804,87.552,87.501,24.9226]
[1646578058615,14.16687602,87.551,87.51,17.1466]
[1646578059714,1.54709804,87.556,87.51,17.1466]
[1646578059914,1.54709804,87.556,87.511,22.8844]
[1646578060117,1.54709804,87.555,87.52,17.1448]
[1646578060315,1.54709804,87.556,87.52,17.1448]
[1646578060516,1.54709804,87.557,87.52,17.1448]
[1646578061417,1.54709804,87.56,87.52,17.1448]
[1646578062018,1.54709804,87.561,87.52,17.1448]
[1646578062417,1.54709804,87.564,87.52,17.1448]
[1646578062617,1.54709804,87.568,87.52,17.1448]
[1646578063021,1.54709804,87.569,87.52,17.1448]
[1646578063220,5.711,87.568,87.52,17.1448]
[1646578063519,1.54709804,87.569,87.521,2.83613526]
[1646578063723,1.54709804,87.569,87.53,17.1412]
[1646578063919,1.54709804,87.569,87.531,54.26675308]
[1646578064122,1.54709804,87.57,87.531,54.26675308]
[1646578064324,1.54709804,87.569,87.531,54.26675308]
[1646578064725,1.54709804,87.569,87.53,17.1429]
[1646578064927,5.711,87.568,87.53,17.1429]
[1646578065120,1.54709804,87.566,87.53,17.1429]
[1646578065324,5.711,87.565,87.53,17.1429]
[1646578066523,7.25809804,87.566,87.53,17.1429]
[1646578066723,1.54709804,87.568,87.53,17.1429]
[1646578067123,1.54709804,87.567,87.53,17.1429]
[1646578068927,1.54709804,87.57,87.53,17.1429]
[1646578069224,1.54709804,87.569,87.53,17.1429]
[1646578071327,1.54709804,87.567,87.53,17.1429]
[1646578072031,1.54709804,87.566,87.53,17.1429]
[1646578072830,1.54709804,87.563,87.53,17.1429]
[1646578073231,1.54709804,87.557,87.53,17.1429]
[1646578074331,1.54709804,87.56,87.53,17.1429]
[1646578074530,1.54709804,87.561,87.53,17.1429]
[1646578074932,1.54709804,87.558,87.53,17.1429]
[1646578075333,1.54709804,87.557,87.53,17.1429]
[1646578075732,1.54709804,87.559,87.53,17.1429]
[1646578075932,1.54709804,87.559,87.521,22.8847]
[1646578076333,1.54709804,87.557,87.521,22.8847]
[1646578076534,1.54709804,87.556,87.521,22.8847]
[1646578077236,1.54709804,87.555,87.521,22.8847]
[1646578077442,19.37073528,87.554,87.521,22.8847]
[1646578078039,1.54709804,87.552,87.521,22.8847]
[1646578078436,1.54709804,87.553,87.521,22.8847]
[1646578079240,1.54709804,87.553,87.53,17.143]
[1646578082846,1.54709804,87.552,87.53,17.143]
[1646578084850,1.54709804,87.552,87.521,22.8847]
[1646578085050,1.54709804,87.551,87.521,22.8847]
[1646578085250,1.54709804,87.55,87.521,22.8847]
[1646578086654,1.54709804,87.55,87.53,17.1433]
[1646578087155,1.54709804,87.551,87.53,17.1433]
[1646578087363,24.4123,87.561,87.53,17.1433]
[1646578087364,1.54709804,87.552,87.53,17.1433]
[1646578087562,1.54709804,87.55,87.53,17.1433]
[1646578087763,1.54709804,87.553,87.53,17.1433]
[1646578087963,1.54709804,87.552,87.53,17.1433]
[1646578088162,1.54709804,87.553,87.53,17.1433]
[1646578089368,1.54709804,87.552,87.53,17.1433]
[1646578090369,1.54709804,87.551,87.53,17.1433]
[1646578090570,1.54709804,87.55,87.53,17.1433]
[1646578095177,1.54709804,87.55,87.521,22.8847]
[1646578096077,1.54709804,87.549,87.521,22.8847]
[1646578096680,1.54709804,87.55,87.521,22.8847]
[1646578098179,1.54709804,87.549,87.53,17.143]
[1646578099282,1.54709804,87.549,87.521,22.8847]
[1646578099881,1.54709804,87.548,87.521,22.8847]
[1646578100081,1.54709804,87.549,87.521,22.8847]
[1646578100683,1.54709804,87.548,87.521,22.8847]
[1646578101381,1.54709804,87.547,87.521,22.8847]
[1646578103284,1.54709804,87.546,87.521,22.8847]
[1646578103484,1.54709804,87.545,87.521,22.8847]
[1646578103689,1.54709804,87.546,87.521,22.8847]
[1646578104088,1.54709804,87.545,87.521,22.8847]
[1646578106096,1.54709804,87.545,87.53,17.1427]
[1646578106891,1.54709804,87.546,87.53,17.1427]
[1646578107294,1.54709804,87.547,87.53,17.1427]
[1646578107496,1.54709804,87.546,87.53,17.1427]
[1646578108695,1.54709804,87.545,87.53,17.1427]
[1646578108897,1.54709804,87.546,87.53,17.1427]
[1646578109095,1.54709804,87.545,87.53,17.1427]
[1646578109296,1.54709804,87.546,87.53,17.1427]
[1646578109698,1.54709804,87.546,87.521,22.8847]
[1646578110100,1.54709804,87.545,87.521,22.8847]
[1646578110296,1.54709804,87.546,87.521,22.8847]
[1646578110897,1.54709804,87.545,87.521,22.8847]
[1646578111097,1.54709804,87.546,87.521,22.8847]
[1646578112198,1.54709804,87.546,87.522,5.712]
[1646578113899,1.54709804,87.546,87.53,17.1431]
[1646578114098,1.54709804,87.547,87.53,17.1431]
[1646578115399,1.54709804,87.546,87.53,17.1431]
[1646578116403,1.54709804,87.547,87.53,17.1431]
[1646578117508,1.54709804,87.547,87.522,5.712]
[1646578118107,1.54709804,87.547,87.521,22.8847]
[1646578118307,1.54709804,87.546,87.521,22.8847]
[1646578118907,1.54709804,87.547,87.53,17.1427]
[1646578119908,1.54709804,87.547,87.521,22.8847]
[1646578120109,1.54709804,87.546,87.521,22.8847]
[1646578121629,1.54709804,87.546,87.522,5.712]
[1646578122028,1.54709804,87.546,87.53,17.1429]
[1646578122832,1.54709804,87.546,87.522,5.712]
[1646578124029,1.54709804,87.546,87.521,22.8847]
[1646578124230,1.54709804,87.545,87.521,22.8847]
[1646578124435,1.54709804,87.544,87.521,22.8847]
[1646578124830,24.4123,87.561,87.521,22.8847]
[1646578124831,1.54709804,87.543,87.521,22.8847]
[1646578125629,1.54709804,87.544,87.521,22.8847]
[1646578125831,1.54709804,87.543,87.521,22.8847]
[1646578126430,1.54709804,87.54,87.521,22.8847]
[1646578126631,1.54709804,87.537,87.521,22.8847]
[1646578126831,1.54709804,87.537,87.498,5.712]
[1646578127033,1.54709804,87.536,87.498,5.712]
[1646578127231,1.54709804,87.527,87.498,5.712]
[1646578127436,1.54709804,87.523,87.494,5.713]
[1646578127831,1.54709804,87.52,87.493,5.713]
[1646578128034,1.54709804,87.517,87.492,23.3763]
[1646578128232,24.4818,87.536,87.492,23.3763]
[1646578128233,1.54709804,87.524,87.492,23.3763]
[1646578128433,1.54709804,87.525,87.492,23.3763]
[1646578128835,1.54709804,87.524,87.492,23.3763]
[1646578129435,1.54709804,87.526,87.492,23.3763]
[1646578129735,1.54709804,87.529,87.5,17.1486]
[1646578130136,1.54709804,87.531,87.5,17.1486]
[1646578130438,1.54709804,87.528,87.493,5.713]
[1646578130639,1.54709804,87.527,87.493,5.713]
[1646578132137,1.54709804,87.529,87.493,5.713]
[1646578133140,1.54709804,87.53,87.5,17.1485]
[1646578133336,1.54709804,87.533,87.5,17.1485]
[1646578133938,1.54709804,87.534,87.5,17.1485]
[1646578134138,1.54709804,87.534,87.493,5.713]
[1646578135437,1.54709804,87.534,87.5,17.1483]
[1646578135840,1.54709804,87.535,87.5,17.1483]
[1646578137540,1.54709804,87.535,87.492,23.3763]
[1646578138540,7.26009804,87.535,87.492,23.3763]
[1646578139241,7.26009804,87.535,87.5,17.1482]
[1646578139446,5.713,87.535,87.5,17.1482]
[1646578139645,24.4818,87.536,87.5,17.1482]
[1646578140245,1.54709804,87.541,87.5,17.1482]
[1646578140446,1.54709804,87.541,87.5,19.98433526]
[1646578140646,1.54709804,87.547,87.51,17.1428]
[1646578140950,1.54709804,87.548,87.51,17.1428]
[1646578141146,1.54709804,87.549,87.511,22.527]
[1646578141347,1.54709804,87.549,87.512,46.39100377]
[1646578141548,1.54709804,87.55,87.512,46.39100377]
[1646578141749,1.54709804,87.55,87.513,5.712]
[1646578142347,1.54709804,87.551,87.513,5.712]
[1646578143249,1.54709804,87.55,87.52,17.143]
[1646578143658,1.54709804,87.551,87.52,17.143]
[1646578144249,1.54709804,87.55,87.52,17.143]
[1646578144651,1.54709804,87.551,87.52,17.143]
[1646578145456,1.54709804,87.55,87.52,17.143]
[1646578145854,1.54709804,87.551,87.52,17.143]
[1646578146555,1.54709804,87.55,87.52,17.143]
[1646578146756,1.54709804,87.551,87.52,17.143]
[1646578147356,1.54709804,87.55,87.52,17.143]
[1646578149157,1.54709804,87.55,87.512,46.39100377]
[1646578149357,1.54709804,87.549,87.512,46.39100377]
[1646578149758,1.54709804,87.55,87.512,46.39100377]
[1646578149959,1.54709804,87.549,87.512,46.39100377]
[1646578150158,1.54709804,87.55,87.512,46.39100377]
[1646578150959,1.54709804,87.549,87.512,46.39100377]
[1646578151761,1.54709804,87.549,87.52,17.1445]
[1646578152059,24.8378,87.564,87.52,17.1445]
[1646578152060,1.54709804,87.55,87.52,17.1445]
[1646578152261,73.22456755,87.625,87.52,17.1445]
[1646578152262,1.54709804,87.552,87.52,17.1445]
[1646578152462,1.54709804,87.562,87.521,24.5099]
[1646578152660,1.54709804,87.563,87.521,24.5099]
[1646578152860,1.54709804,87.563,87.53,17.1377]
[1646578153061,1.54709804,87.565,87.53,17.1377]
[1646578153462,1.54709804,87.566,87.53,17.1377]
[1646578153663,1.54709804,87.566,87.531,24.5099]
[1646578154265,1.54709804,87.566,87.54,17.1406]
[1646578154470,1.54709804,87.565,87.54,17.1406]
[1646578154668,1.54709804,87.566,87.541,48.50808153]
[1646578154881,1.54709804,87.567,87.541,48.50808153]
[1646578155082,1.54709804,87.566,87.541,48.50808153]
[1646578156180,1.54709804,87.567,87.541,48.50808153]
[1646578156581,1.54709804,87.566,87.541,48.50808153]
[1646578157082,1.54709804,87.567,87.541,48.50808153]
[1646578157283,1.54709804,87.568,87.541,48.50808153]
[1646578157484,1.54709804,87.567,87.541,48.50808153]
[1646578159687,1.54709804,87.567,87.531,24.5099]
[1646578160787,1.54709804,87.567,87.54,17.1407]
[1646578162187,1.54709804,87.568,87.54,17.1407]
[1646578162387,1.54709804,87.567,87.54,17.1407]
[1646578162988,1.54709804,87.568,87.54,17.1407]
[1646578163994,1.54709804,87.568,87.551,114.6]
[1646578164190,0.00709804,87.584,87.551,114.6]
[1646578164393,3.04784729,87.623,87.557,183.05]
[1646578164589,23.9043,87.626,87.561,114.6]
[1646578164791,5.708,87.625,87.561,114.6]
[1646578164990,5.708,87.625,87.563,114.6]
[1646578165193,5.708,87.637,87.58,17.1295]
[1646578165391,24.444,87.644,87.581,114.6]
[1646578165590,6.24413681,87.643,87.581,114.6]
[1646578165791,24.444,87.644,87.581,134.88983655]
[1646578165991,24.444,87.644,87.583,114.6]
[1646578166390,24.444,87.644,87.587,114.6]
[1646578166605,52.20971032,87.653,87.587,114.6]
[1646578166606,52.20971032,87.653,87.591,56.96111215]
[1646578166792,52.20971032,87.653,87.592,5.706]
[1646578169201,52.20971032,87.653,87.61,17.1264]
[1646578169397,5.705,87.652,87.61,17.1264]
[1646578170697,5.705,87.652,87.586,5.705]
[1646578170899,23.3088,87.651,87.581,5.706]
[1646578171098,5.706,87.65,87.56,16.47]
[1646578171298,28.7909,87.65,87.561,28.7586]
[1646578171816,28.7909,87.65,87.562,62.03357895]
[1646578171999,28.7909,87.65,87.563,5.707]
[1646578173304,45.9218,87.65,87.57,17.1347]
[1646578175607,40.2158,87.65,87.571,5.707]
[1646578175807,40.2158,87.65,87.591,51.05663153]
[1646578176206,40.2158,87.65,87.592,5.706]
[1646578176207,5.706,87.649,87.592,5.706]
[1646578176910,5.706,87.649,87.6,17.1292]
[1646578178114,5.706,87.649,87.592,5.706]
[1646578178316,28.7909,87.65,87.592,5.706]
[1646578178515,28.7909,87.65,87.592,4.21121417]
[1646578178917,28.7909,87.65,87.591,51.05663153]
[1646578179318,45.9216,87.65,87.591,51.05663153]
[1646578180723,45.9216,87.65,87.591,49.55663153]
[1646578182140,45.9216,87.65,87.6,17.1289]
[1646578182338,28.7909,87.65,87.6,17.1289]
[1646578183340,23.0849,87.65,87.6,17.1289]
[1646578186544,5.706,87.649,87.6,17.1289]
[1646578187546,23.0849,87.65,87.6,17.1289]
[1646578188751,40.2153,87.65,87.6,17.1289]
[1646578188946,40.2153,87.65,87.591,49.55663153]
[1646578189748,6.24447892,87.649,87.591,49.55663153]
[1646578190150,6.24447892,87.649,87.592,5.706]
[1646578190551,5.706,87.648,87.592,120.306]
[1646578190753,23.0849,87.65,87.592,5.706]
[1646578192053,6.2443223,87.649,87.592,5.706]
[1646578192655,6.2443223,87.649,87.582,23.4868]
[1646578192956,9.29216959,87.649,87.582,23.4868]
[1646578193153,3.04784729,87.648,87.582,23.4868]
[1646578193353,3.04784729,87.646,87.582,23.4868]
[1646578193555,5.706,87.645,87.582,23.4868]
[1646578193754,6.2443223,87.644,87.582,23.4868]
[1646578193953,3.04784729,87.634,87.582,23.4868]
[1646578195256,3.04784729,87.634,87.59,17.1311]
[1646578195456,5.706,87.633,87.59,80.09065012]
[1646578195656,6.2443223,87.632,87.59,80.09065012]
[1646578196758,3.6499843,87.632,87.59,80.09065012]
[1646578197160,3.04784729,87.634,87.591,2.83613526]
[1646578197359,5.706,87.633,87.591,2.83613526]
[1646578197759,3.04784729,87.634,87.591,2.83613526]
[1646578198160,3.04784729,87.632,87.591,2.83613526]
[1646578198561,3.04784729,87.632,87.6,17.1289]
[1646578199569,3.04784729,87.631,87.6,17.1289]
[1646578201262,3.04784729,87.635,87.6,17.1289]
[1646578201462,3.04784729,87.636,87.6,17.1289]
[1646578201762,4.66837723,87.66,87.6,17.1289]
[1646578201763,3.04784729,87.641,87.6,17.1289]
[1646578202370,3.04784729,87.642,87.6,17.1289]
[1646578202563,3.04784729,87.642,87.601,114.6]
[1646578202766,4.66837723,87.667,87.61,17.1238]
[1646578202767,3.04784729,87.644,87.61,17.1238]
[1646578202965,3.04784729,87.646,87.611,23.9507]
[1646578203569,3.04784729,87.645,87.611,23.9507]
[1646578203765,3.04784729,87.645,87.612,61.63876449]
[1646578204168,3.04784729,87.645,87.62,17.1228]
[1646578204366,3.04784729,87.648,87.62,17.1228]
[1646578205668,3.04784729,87.65,87.62,17.1228]
[1646578206769,3.04784729,87.651,87.62,17.1228]
[1646578208104,3.04784729,87.653,87.62,17.1228]
[1646578208302,3.04784729,87.655,87.62,17.1228]
[1646578208502,3.04784729,87.653,87.62,17.1228]
[1646578208902,3.04784729,87.654,87.62,17.1228]
[1646578209102,3.04784729,87.656,87.62,17.1228]
[1646578210201,3.04784729,87.657,87.62,17.1228]
[1646578210402,3.04784729,87.665,87.62,17.1228]
[1646578211604,3.04784729,87.666,87.62,17.1228]
[1646578212007,3.04784729,87.667,87.62,17.1228]
[1646578212205,3.04784729,87.667,87.62,131.7228]
[1646578212405,3.04784729,87.674,87.62,148.1928]
[1646578212605,3.04784729,87.677,87.62,148.1928]
[1646578212805,3.04784729,87.677,87.622,114.6]
[1646578213004,3.04784729,87.677,87.63,131.7187]
[1646578213209,3.04784729,87.678,87.63,131.7187]
[1646578213408,3.04784729,87.679,87.63,131.7187]
[1646578213907,3.04784729,87.678,87.631,51.89300214]
[1646578214111,3.04784729,87.678,87.64,17.1202]
[1646578214509,3.04784729,87.683,87.64,17.1202]
[1646578214811,5.703,87.682,87.64,17.1202]
[1646578215216,5.703,87.683,87.64,17.1202]
[1646578215715,5.703,87.685,87.64,17.1202]
[1646578215911,22.5765,87.684,87.64,17.1202]
[1646578216110,5.703,87.683,87.64,17.1202]
[1646578216713,5.703,87.683,87.632,22.8273]
[1646578216912,3.04784729,87.678,87.632,22.8273]
[1646578217112,8.75184729,87.677,87.632,22.8273]
[1646578217314,5.704,87.677,87.632,22.8273]
[1646578217513,8.75184729,87.679,87.632,22.8273]
[1646578217712,3.04784729,87.678,87.632,22.8273]
[1646578217912,5.704,87.677,87.632,22.8273]
[1646578218512,8.75184729,87.678,87.632,22.8273]
[1646578218913,5.704,87.678,87.632,22.8273]
[1646578223317,3.04784729,87.68,87.632,22.8273]
[1646578224016,3.04784729,87.681,87.632,22.8273]
[1646578224816,3.04784729,87.68,87.632,22.8273]
[1646578225716,3.04784729,87.679,87.632,22.8273]
[1646578225916,3.04784729,87.68,87.632,22.8273]
[1646578226119,3.04784729,87.681,87.632,22.8273]
[1646578226817,5.704,87.68,87.632,22.8273]
[1646578227417,8.75184729,87.68,87.632,22.8273]
[1646578227819,3.04784729,87.679,87.632,22.8273]
[1646578228022,5.704,87.678,87.632,22.8273]
[1646578229521,8.75184729,87.678,87.632,22.8273]
[1646578229828,3.04784729,87.677,87.632,22.8273]
[1646578230020,22.5765,87.684,87.632,22.8273]
[1646578230021,3.04784729,87.675,87.632,22.8273]
[1646578230221,5.704,87.674,87.632,22.8273]
[1646578230921,8.75184729,87.674,87.632,22.8273]
[1646578231126,5.704,87.674,87.632,22.8273]
[1646578231422,24.7443,87.673,87.632,22.8273]
[1646578231621,3.04784729,87.671,87.632,22.8273]
[1646578234348,5.704,87.672,87.632,22.8273]
[1646578234349,3.04784729,87.669,87.632,22.8273]
[1646578235544,3.04784729,87.668,87.632,22.8273]
[1646578236348,3.04784729,87.669,87.632,22.8273]
[1646578238349,3.04784729,87.667,87.632,22.8273]
[1646578238549,3.04784729,87.668,87.632,22.8273]
[1646578238951,3.04784729,87.669,87.632,22.8273]
[1646578240354,3.04784729,87.667,87.632,22.8273]
[1646578241155,3.04784729,87.668,87.632,22.8273]
[1646578241553,3.04784729,87.667,87.632,22.8273]
[1646578241755,3.04784729,87.668,87.632,22.8273]
[1646578242253,3.04784729,87.668,87.64,17.1201]
[1646578244559,3.04784729,87.672,87.64,17.1201]
[1646578244757,3.04784729,87.672,87.632,22.8273]
[1646578245057,3.04784729,87.671,87.632,22.8273]
[1646578245456,3.04784729,87.669,87.632,22.8273]
[1646578245658,3.04784729,87.668,87.632,22.8273]
[1646578246458,2.84784729,87.669,87.632,22.8273]
[1646578247158,2.84784729,87.669,87.64,17.1204]
[1646578248459,24.7443,87.673,87.64,17.1204]
[1646578249862,10.37237723,87.696,87.64,17.1204]
[1646578250063,4.66837723,87.696,87.64,17.1204]
[1646578250262,5.703,87.695,87.64,34.0798]
[1646578250763,62.45164322,87.694,87.64,34.0798]
[1646578250961,5.703,87.693,87.64,34.0798]
[1646578253264,5.703,87.694,87.64,34.0798]
[1646578255365,24.6246,87.695,87.64,34.0798]
[1646578256168,4.66837723,87.708,87.65,17.1152]
[1646578256369,24.1742,87.714,87.651,24.8911]
[1646578256569,5.702,87.713,87.651,74.70140235]
[1646578257168,5.702,87.713,87.652,108.52268142]
[1646578257370,24.1742,87.714,87.652,108.52268142]
[1646578257567,5.702,87.715,87.661,114.6]
[1646578257771,102.78443205,87.729,87.66,17.1129]
[1646578257772,5.702,87.728,87.663,114.6]
[1646578257970,102.78443205,87.729,87.663,114.6]
[1646578258268,102.78443205,87.729,87.665,114.6]
[1646578258470,57.49780991,87.745,87.68,16.47]
[1646578258669,5.7,87.744,87.681,73.06163496]
[1646578259270,23.5896,87.743,87.681,73.06163496]
[1646578259482,5.7,87.742,87.681,73.06163496]
[1646578260073,5.7,87.742,87.69,17.1091]
[1646578260272,5.7,87.742,87.691,23.0635]
[1646578260472,23.5896,87.743,87.691,23.0635]
[1646578261472,23.5896,87.743,87.668,23.0545]
[1646578261673,23.5896,87.743,87.669,23.0635]
[1646578261674,5.7,87.742,87.669,23.0635]
[1646578262373,5.7,87.742,87.67,47.11334063]
[1646578263374,17.1128,87.74,87.67,64.22754063]
[1646578263574,5.7,87.739,87.67,64.22754063]
[1646578264778,17.1128,87.74,87.671,5.7]
[1646578264975,23.5896,87.743,87.68,17.1113]
[1646578265275,23.5896,87.743,87.671,5.7]
[1646578266075,17.113,87.74,87.671,5.7]
[1646578266277,5.7,87.739,87.671,5.7]
[1646578266474,5.7,87.739,87.67,47.11334063]
[1646578266675,5.7,87.742,87.67,47.11334063]
[1646578267075,5.7,87.742,87.68,17.1123]
[1646578267299,5.7,87.742,87.681,23.1183]
[1646578268297,23.5896,87.743,87.69,17.1101]
[1646578268497,23.5896,87.743,87.681,23.1183]
[1646578268897,65.59211763,87.742,87.681,23.1183]
[1646578269901,17.1131,87.74,87.681,23.1183]
[1646578270099,5.7,87.739,87.681,23.1183]
[1646578270298,5.7,87.741,87.681,23.1183]
[1646578270901,17.116,87.73,87.681,23.1183]
[1646578271099,18.18036903,87.728,87.67,64.22754063]
[1646578271299,5.7,87.727,87.67,64.22754063]
[1646578272098,5.7,87.727,87.67,47.11334063]
[1646578272299,5.7,87.727,87.651,24.7886]
[1646578273102,114.6,87.727,87.651,24.7886]
[1646578273303,5.7,87.726,87.652,55.14376238]
[1646578273499,114.6,87.719,87.652,55.14376238]
[1646578273702,5.702,87.718,87.652,55.14376238]
[1646578274306,23.9252,87.717,87.652,55.14376238]
[1646578274506,5.702,87.716,87.66,17.1161]
[1646578274902,5.702,87.716,87.661,24.4408]
[1646578282105,5.702,87.716,87.67,17.114]